Cogmind - Beta 15 @@@ ROGUE MODE // 2025.05.22 @ 14:03:08 Player: Darcyisverycute Result: Destroyed by EQ-040 with Railgun Performance ------------- Evolutions (9) 4500 Regions Visited (21) 4200 Robots Destroyed (113) 565 Value Destroyed (7248) 7248 Prototype IDs (83) 1660 Alien Tech Used (8) 1600 Bonus (33183) 33183 TOTAL SCORE: 52956 Bonus ------- High Alert Combat Kills 728 Follower Combat Kills 1833 Network Hubs Disabled 800 Registered with UFD 300 Met Optimus in HQ 500 Met Zhirov 300 Built Enhanced Grunts 300 A7 Reached Mainframe 300 Met R17 at Cetus 500 Found Hidden Lab 3000 Destroyed Superfortress 15000 Met Optimus at Protoforge 1000 Destroyed MAIN.C Guards 500 Met MAIN.C 5000 Destroyed MAIN.C Shell 5000 Friendly Fire -1878 Cogmind --------- Core Integrity 0/1600 Matter 295/300 Energy 82/100 System Corruption 49% Temperature Cool (0) Movement Core (50) Location -1/Command Parts ------- > --- POWER (2) -------- (None) > --- PROPULSION (8) --- High-density Centrium Leg Experimental Biometal Leg Experimental Biometal Leg Experimental Biometal Leg > --- UTILITY (13) ----- Advanced Signal Interpreter Advanced Phase Shifter > --- WEAPON (3) ------- (None) > --- INVENTORY (5) ---- Micro Antimatter Reactor Experimental Energy Well (153) Enhanced Nova Cannon Enhanced Nova Cannon Graviton Cannon Peak State ------------ > --- POWER ------------ Vortex Chain Reactor > --- PROPULSION ------- Advanced Medium Treads Experimental Biometal Heavy Treads Experimental Biometal Heavy Treads High-density Centrium Leg Experimental Biometal Leg Experimental Biometal Leg > --- UTILITY ---------- Experimental Coolant Injector Experimental Energy Well Concept Chromion Battery Advanced Signal Interpreter Advanced Weapon Cycler Heavy Regenerative Plating Heavy Regenerative Plating Graphene Brace Experimental EM Shield AEGIS Remote Shield Experimental System Purifier > --- WEAPON ----------- Potential Cannon Multirail > --- INVENTORY -------- Enhanced Nova Cannon Enhanced Nova Cannon Heavy Hardcell Cannon Graviton Cannon [Rating: 244] Favorites ----------- Power Light Neutrino Core Engine Improved Ion Engine Power Core Light Neutrino Core Reactor Light Quantum Reactor Propulsion Light Treads Treads Light Treads Leg Experimental Biometal Leg Flight Unit Flightbrick Utility Improved Hacking Suite Device Advanced Terrain Scanner Storage Medium Storage Unit Processor Improved Signal Interpreter Hackware Improved Hacking Suite Protection Heavy Regenerative Plating Artifact Phase Redirector Weapon Light Cannon Energy Gun Advanced Variable Charge Gun Energy Cannon Matter Neutralizer Ballistic Gun Subdweller Machine Gun Ballistic Cannon Light Cannon Launcher Gamma Bomb Array Special Weapon Guided Remote Datajack Slashing Weapon Vibroblade Special Melee Weapon Advanced Datajack Build | -11 -10 -10 -7 -5 -5 -5 -5 -5 -4 -4 -4 -4 -3 -3 -3 -3 -2 -2 -2 -1 -1 ------- Run | Yrd Mat Sub Scr Fac Ext Cet Arc Hub Fac Upp Upp Zhi Pro Res Arm Lab Res Qua Frg Acc Com Slots Evolved 18 | . . . . 10 . . . . 2 . . . . 2 . . 2 . . 2 . Power 1 | . . . . 1 . . . . . . . . . . . . . . . . . Propulsion 6 | . . . . 4 . . . . 1 . . . . . . . 1 . . . . Utility 10 | . . . . 5 . . . . 1 . . . . 2 . . 1 . . 1 . Weapon 1 | . . . . . . . . . . . . . . . . . . . . 1 . Parts Attached 168 | 6 6 5 3 21 3 7 6 2 15 . . 2 2 5 1 4 2 6 21 1 50 Power 17 | 1 1 1 1 1 . . 1 . 2 . . 1 . . . . . . 3 . 5 Engine 4 | 1 1 1 . . . . 1 . . . . . . . . . . . . . . Core 6 | . . . 1 1 . . . . 2 . . . . . . . . . 2 . . Reactor 7 | . . . . . . . . . . . . 1 . . . . . . 1 . 5 Propulsion 29 | 2 . 1 . 4 . . . . 2 . . . . . . . 1 . 2 . 17 Treads 14 | 2 . 1 . . . . . . . . . . . . . . . . . . 11 Leg 5 | . . . . . . . . . . . . . . . . . . . . . 5 Wheel . | . . . . . . . . . . . . . . . . . . . . . . Hover . | . . . . . . . . . . . . . . . . . . . . . . Flight 10 | . . . . 4 . . . . 2 . . . . . . . 1 . 2 . 1 Utility 79 | 1 3 . 1 13 1 4 5 . 5 . . 1 2 4 1 1 1 5 13 . 18 Device 40 | . 1 . 1 4 . . 2 . 5 . . . 2 . 1 . . 3 8 . 13 Storage 10 | 1 2 . . 2 . 1 . . . . . . . . . . 1 . 2 . 1 Processor 9 | . . . . 2 . . . . . . . . . 4 . . . 1 2 . . Hackware 11 | . . . . 5 1 . 3 . . . . . . . . 1 . . 1 . . Protection 8 | . . . . . . 3 . . . . . 1 . . . . . . . . 4 Artifact 1 | . . . . . . . . . . . . . . . . . . 1 . . . Weapon 43 | 2 2 3 1 3 2 3 . 2 6 . . . . 1 . 3 . 1 3 1 10 Energy Gun 6 | 1 . . . . 1 1 . 1 1 . . . . . . 1 . . . . . Energy Cannon 8 | . . . . 1 . . . . 1 . . . . . . 1 . 1 . 1 3 Ballistic Gun 7 | 1 . 2 1 . . 1 . . . . . . . . . . . . 1 . 1 Ballistic Cannon 6 | . 1 1 . . . . . . . . . . . . . . . . . . 4 Launcher 5 | . . . . 1 1 . . . . . . . . . . . . . 1 . 2 Special Weapon 6 | . 1 . . . . 1 . 1 1 . . . . 1 . 1 . . . . . Impact Weapon . | . . . . . . . . . . . . . . . . . . . . . . Slashing Weapon 2 | . . . . . . . . . 1 . . . . . . . . . 1 . . Piercing Weapon . | . . . . . . . . . . . . . . . . . . . . . . Special Melee Weapon 3 | . . . . 1 . . . . 2 . . . . . . . . . . . . Unidentified Prototypes 51 | . . . . . . 5 . . 4 . . 3 . 1 1 5 . 2 11 . 19 Corrupted Parts 8 | . . . . . . . . . . . . . . . . . . . . . 8 System Corruption 58 | . . . . . . . . . . . . . . . . . . . . . 58 Parts Lost 38 | . 1 . . . 2 . . . 2 . . . . . . . 2 . 1 . 30 Power 5 | . . . . . 1 . . . 1 . . . . . . . . . 1 . 2 Propulsion 7 | . . . . . . . . . . . . . . . . . . . . . 7 Utility 19 | . 1 . . . . . . . . . . . . . . . 2 . . . 16 Weapon 7 | . . . . . 1 . . . 1 . . . . . . . . . . . 5 Highest Loss Streak 10 | . 1 . . . 1 . . . 1 . . . . . . . 2 . 1 . 10 To Critical Strikes . | . . . . . . . . . . . . . . . . . . . . . . Average Backups 12 | 1 16 17 16 10 9 9 10 8 9 10 10 9 10 9 9 7 9 8 9 8 5 Power . | . 2 2 1 . . . . . . . . . . . . . . . . . . Propulsion 2 | . 4 6 4 . . . . . . . . . . . . . . . . . . Utility 3 | . 2 2 4 5 5 6 7 5 4 5 5 5 5 5 5 4 3 3 4 4 1 Weapon 3 | 1 6 6 4 2 1 2 2 2 3 3 3 3 3 3 4 1 2 2 1 2 2 Tool/Special . | . . . . . . . . . . . . . . . . . . . . . . Unused Backups 43 | . 1 7 17 9 1 1 . . . . . . . . . 1 1 3 1 . 1 Power 5 | . 1 2 1 1 . . . . . . . . . . . . . . . . . Propulsion 10 | . . 2 5 2 . . . . . . . . . . . . 1 . . . . Utility 10 | . . . 4 4 1 1 . . . . . . . . . . . . . . . Weapon 11 | . . 3 4 2 . . . . . . . . . . . 1 . 1 . . . Tool/Special 7 | . . . 3 . . . . . . . . . . . . . . 2 1 . 1 Average Slot Usage (%) 80 | . 90 85 82 66 73 70 71 78 78 81 81 81 80 82 83 82 82 82 79 76 73 Engine 4 | . 14 14 5 . . . 3 5 1 . . . . . . . . . . . . Core 5 | . . . 8 9 5 5 2 5 6 9 9 9 9 8 8 8 7 7 4 3 1 Treads 14 | . 28 28 28 . . . . . . . . . . . . . . . . . 10 Flight 6 | . . . . 14 15 15 15 15 13 13 13 13 13 12 12 12 14 15 16 19 5 Device 11 | . 5 . 4 11 10 5 10 13 15 18 18 18 18 16 19 19 19 24 24 25 22 Storage 9 | . 14 14 14 5 5 5 5 5 5 4 4 4 4 4 4 4 3 3 4 4 5 Processor 5 | . . . . 6 10 10 10 10 9 9 9 9 9 16 16 16 15 17 14 3 3 Hackware 6 | . . . . 13 20 20 18 20 18 18 18 18 18 15 12 12 11 4 3 7 2 Ballistic Gun 6 | . 14 15 14 1 . . . . . . . . . . . . . . . . . Ballistic Cannon 4 | . 10 12 7 . . . . . . . . . . . . . . . . . 1 Peak Build Rating 244 | 6 10 15 21 93 95 104 103 110 143 143 143 144 147 163 158 167 181 187 192 196 244 Average Rating 85 | 5 8 12 17 83 89 95 97 103 132 143 143 143 144 158 154 157 178 182 185 189 199 On Entrance 112 | . 6 9 15 21 93 95 95 103 105 143 143 143 144 146 159 154 167 168 187 186 189 Naked Turns . | . . . . . . . . . . . . . . . . . . . . . . Heaviest Build 136 | 11 53 54 54 41 34 38 34 34 44 42 42 42 40 46 48 45 66 55 69 54 136 Greatest Support 230 | 40 40 40 40 34 34 34 34 34 46 46 49 46 49 49 49 46 56 56 61 64 230 Greatest Overweight (x) 9 | . 1 1 1 1 9 1 . . 1 . . . . . 1 . 1 1 1 . 2 Average Overweight (x) . | . . 1 1 . . . . . . . . . . . . . . . . . . Largest Inventory Capacity 20 | 8 20 20 20 20 10 10 10 10 10 10 10 10 10 10 10 10 10 10 10 10 10 Average Capacity 14 | 7 17 20 20 11 10 10 10 10 10 10 10 10 10 10 10 10 10 10 10 10 6 Most Carried 20 | 4 20 20 20 20 10 10 10 10 10 10 10 10 10 10 10 10 10 10 10 10 10 Average Carried 13 | 2 16 19 19 10 9 9 10 8 9 10 10 9 10 9 9 8 9 9 9 9 5 Final Capacity 20 | 8 20 20 20 10 10 10 10 10 10 10 10 10 10 10 10 10 10 10 10 10 10 Final Carried 20 | 4 20 20 20 10 10 10 10 9 10 10 10 10 10 10 9 10 10 10 9 10 10 Class Distribution -------------------- 48% | Mutant 20% | Hacker-Ninja 7% | Hacker-Sprinter 6% | Hacker-Scout 6% | Scavenger-Tank Dominant Class ---------------- Mutant | -10/Materials Mutant | -10/Subcaves Mutant | -7/Scraptown Hacker-Sprinter | -5/Factory Hacker-Sprinter | -5/Extension Commander-Mutant | -5/Cetus Hacker-Sprinter | -5/Archives Hacker-Scout | -5/Hub_04(d) Hacker-Scout | -4/Factory Hacker-Ninja | -4/Upper Caves Hacker-Ninja | -4/Upper Caves Hacker-Ninja | -4/Zhirov Hacker-Ninja | -3/Proximity Caves Hacker-Ninja | -3/Research Hacker-Ninja | -3/Armory Hacker-Ninja | -3/Lab Hacker-Ninja | -2/Research Hacker-Ninja | -2/Quarantine Hacker-Ninja | -2/Protoforge Hacker-Ninja | -1/Access Scavenger-Tank | -1/Command Resources | -11 -10 -10 -7 -5 -5 -5 -5 -5 -4 -4 -4 -4 -3 -3 -3 -3 -2 -2 -2 -1 -1 ----------- Run | Yrd Mat Sub Scr Fac Ext Cet Arc Hub Fac Upp Upp Zhi Pro Res Arm Lab Res Qua Frg Acc Com Matter Collected 4614 | 284 362 157 41 300 368 217 71 60 220 35 39 120 17 . . . 146 276 247 46 1608 Remotely . | . . . . . . . . . . . . . . . . . . . . . . Salvage Created 5871 | 151 416 209 . 206 764 146 203 . 283 . 53 184 . . . . 196 324 . 126 2610 Parts 236 | 7 28 15 . 11 15 2 21 . 13 . 1 1 . . . . 8 16 . 2 96 Haulers Intercepted 1 | . 1 . . . . . . . . . . . . . . . . . . . . Recyclers Shooed 8 | . 1 . . . 4 . . . 1 . . . . . . . 1 1 . . . Parts Field Recycled . | . . . . . . . . . . . . . . . . . . . . . . Retrieved Matter . | . . . . . . . . . . . . . . . . . . . . . . Parts Self-Destructed 9 | . . 8 . . . . . . . . . 1 . . . . . . . . . Prevented . | . . . . . . . . . . . . . . . . . . . . . . Kills | -11 -10 -10 -7 -5 -5 -5 -5 -5 -4 -4 -4 -4 -3 -3 -3 -3 -2 -2 -2 -1 -1 ------- Run | Yrd Mat Sub Scr Fac Ext Cet Arc Hub Fac Upp Upp Zhi Pro Res Arm Lab Res Qua Frg Acc Com Combat Hostiles Destroyed 71 | . 8 7 . 1 10 2 . . 5 . . . . . . . . . . . 38 Guns 5 | . 3 2 . . . . . . . . . . . . . . . . . . . Cannons 22 | . 5 5 . . 4 . . . 1 . . . . . . . . . . . 7 AOE 23 | . . . . 1 6 2 . . 4 . . . . . . . . . . . 10 Classes Destroyed 20 | 2 4 2 . 3 . 1 1 . 2 . . . . . . . . . . . 5 Worker 5 | . . . . . . . . . 1 . . . . . . . . 2 . . 2 Builder 4 | . . . . 2 1 . . . 1 . . . . . . . . . . . . Tunneler 4 | 2 1 . . 1 . . . . . . . . . . . . . . . . . Hauler 1 | . 1 . . . . . . . . . . . . . . . . . . . . Recycler 13 | 1 2 . . 1 4 . . . 2 . . . . . . . 1 2 . . . Mechanic 3 | . . . . 1 . . . . . . . . . . . . . . . 1 1 Operator 6 | . . . . . . . 6 . . . . . . . . . . . . . . Watcher 3 | . 2 . . 1 . . . . . . . . . . . . . . . . . Swarmer 11 | . 2 2 . . 2 . . . 4 . . . . . . . . . . . 1 Grunt 22 | . 6 1 . . 7 . . . . . . . . . . . . . . . 8 Brawler 2 | . . . . . . . . . . . . . . . . . . . . . 2 Duelist 1 | . . . . . . . . . . . . . . . . . . . . . 1 Protector 1 | . . . . . . . . . . . . . . . . . . . . . 1 Sentry 3 | . . 1 . . 1 . . . . . . . . . . . . . . . 1 Specialist 4 | . . . . . . . . . . . . . . . . . . . . . 4 Hunter 6 | . . . . 1 . . . . . . . . . . . . . . . . 5 Programmer 4 | . . . . . . . . . 1 . . . . . . . . . . . 3 Cetus Guard 2 | . . . . . . 2 . . . . . . . . . . . . . . . M Guard 2 | . . . . . . . . . . . . . . . . . . . . . 2 Enhanced Q-Series 4 | . . . . . . . . . . . . . . . . . . . . . 4 Combat Programmer 2 | . . . . . . . . . . . . . . . . . . . . . 2 Striker 3 | . . . . . . . . . . . . . . . . . . . . . 3 Subdweller 3 | . . 3 . . . . . . . . . . . . . . . . . . . Decomposer 3 | . . . . . . . . . . . 3 . . . . . . . . . . Thug 1 | . . . . . 1 . . . . . . . . . . . . . . . . Butcher 1 | . . . . . . 1 . . . . . . . . . . . . . . . Best Kill Streak 9 | 1 4 2 . 4 8 2 3 . 8 . . . . . . . 1 2 . 1 9 Combat Bots Only 8 | . 2 2 . 1 6 2 . . 4 . . . . . . . . . . . 8 Max Kills in Single Turn 4 | 1 1 1 . 2 4 1 1 . 3 . 1 . . . . . 1 1 . 1 2 Gunslinging . | . . . . . . . . . . . . . . . . . . . . . . Exploded 2 | . . . . 1 2 1 . . 2 . . . . . . . . . . . 2 Melee . | . . . . . . . . . . . . . . . . . . . . . . Uniques/NPCs Destroyed 2 | . . . . . . 1 . . . . . . . . . . . . . . 1 A7 (-5/Cetus) MAIN.C Shell (-1/Command) Combat | -11 -10 -10 -7 -5 -5 -5 -5 -5 -4 -4 -4 -4 -3 -3 -3 -3 -2 -2 -2 -1 -1 -------- Run | Yrd Mat Sub Scr Fac Ext Cet Arc Hub Fac Upp Upp Zhi Pro Res Arm Lab Res Qua Frg Acc Com Hostile Shots Fired 950 | . 51 24 . 36 26 21 6 2 53 . 2 . 6 15 . . 7 12 21 16 652 Missed 328 | . 17 8 . 13 11 10 2 . 32 . . . 5 11 . . 3 6 13 10 187 Hits 622 | . 34 16 . 23 15 11 4 2 21 . 2 . 1 4 . . 4 6 8 6 465 Melee 5 | . . . . . . . . . . . . . . . . . . . . . 5 Projectile 617 | . 34 16 . 23 15 11 4 2 21 . 2 . 1 4 . . 4 6 8 6 460 AOE 14 | . . . . . . . . . . . . . . . . . 1 . 2 . 11 Critical Strikes 37 | . . 1 . 1 . 3 . 1 . . . . . 1 . . . 1 . . 29 Actively Blocked 30 | . . . . . . . . . . . . . . . . . . 1 . . 29 Part Disruptions 7 | . . . . . . . . . . . . . . . . . . . . . 7 Damage Taken 17790 | . 416 291 . 313 382 255 107 49 702 . 39 . 17 92 . . 366 170 1043 130 13418 Core 2218 | . 69 77 . 13 56 28 . . 103 . . . 17 27 . . 118 . 95 71 1544 Absorbed by Shields 3067 | . . . . . 88 93 . . . . . . . . . . . . . . 2886 Reduced by Siege Mode 316 | . . . . . . . . . . . . . . . . . . . . . 316 Regen/Repaired (Parts) 1731 | . . . 181 . . 85 29 . 10 . . . . . . . . 11 92 64 1259 Core Remaining (%) 79 | 100 . . 41 . . . . 90 . . . . 89 . . 88 . . 71 . . Volleys Fired 624 | 8 55 23 . 58 51 21 75 24 76 5 5 . . 19 1 . 5 11 13 10 164 Largest 3 | 2 2 2 . 2 2 2 1 1 1 1 1 . . 1 1 . 1 1 1 1 3 Hottest 305 | 60 100 60 . 105 85 155 80 240 240 105 105 . . 105 105 . 200 105 200 113 305 Shots Fired 771 | 16 104 41 . 59 55 22 74 24 76 5 6 . . 19 1 . 5 11 13 10 230 Gun 307 | 16 56 23 . 22 . 12 74 24 32 . . . . . . . . . . . 48 Cannon 376 | . 42 18 . 30 43 . . . 41 5 6 . . 19 1 . 2 6 11 8 144 Launcher 65 | . . . . 7 12 8 . . 3 . . . . . . . . . . . 35 Special 23 | . 6 . . . . 2 . . . . . . . . . . 3 5 2 2 3 Kinetic 238 | 8 91 41 . 22 . . . . . . . . . . . . . . . . 76 Thermal 438 | 8 13 . . 30 43 12 74 24 73 5 6 . . 19 1 . 2 6 11 8 103 Explosive 30 | . . . . 7 12 8 . . 3 . . . . . . . . . . . . Electromagnetic 48 | . . . . . . . . . . . . . . . . . . . . . 48 Robot Hit Streak 22 | 12 13 11 . 10 7 6 5 . 4 . 3 . . 2 . . 1 2 5 6 22 Robot Miss Streak 9 | 2 2 3 . 4 4 2 4 . 3 . 1 . . 1 . . . . . . 9 Penetration Max 1 | . . . . . . . . . . . . . . . . . . . . . 1 Secondary Targets . | . . . . . . . . . . . . . . . . . . . . . . Shots Hit Robots 390 | 12 60 23 . 15 29 11 41 . 14 . 3 3 . 7 . . 5 7 3 4 153 Core Hits 278 | 4 24 11 . 15 36 23 17 . 16 . 2 2 . . . . 2 4 . 2 120 Critical Kills 3 | . . . . . 1 . . . . . . . . . . . . . . . 2 Critical Parts Destroyed . | . . . . . . . . . . . . . . . . . . . . . . Critical Strikes 9 | . 1 2 . . 1 . . . . . . . . . . . . . . . 5 Meltdown 3 | . . . . . 1 . . . . . . . . . . . . . . . 2 Destroy 3 | . . 1 . . . . . . . . . . . . . . . . . . 2 Blast 3 | . 1 1 . . . . . . . . . . . . . . . . . . 1 Melee Attacks 130 | . . . . . 2 . . . 10 . . 3 1 17 6 3 17 22 18 13 18 Impact . | . . . . . . . . . . . . . . . . . . . . . . Slashing 114 | . . . . . . . . . 5 . . 3 1 8 6 3 17 22 18 13 18 Piercing . | . . . . . . . . . . . . . . . . . . . . . . Sneak Attacks 12 | . . . . . 2 . . . 1 . . . . 1 . . 1 5 . 1 1 Combat Hostiles . | . . . . . . . . . . . . . . . . . . . . . . Follow-up Attacks . | . . . . . . . . . . . . . . . . . . . . . . Damage Inflicted 23995 | 141 912 375 . 840 1982 954 1219 . 1131 . 106 326 . 35 . . 374 680 115 283 14522 Guns 3823 | 141 445 150 . 133 . 263 1219 . 155 . . . . . . . . . . . 1317 Cannons 8299 | . 467 225 . 62 733 . . . 328 . 106 . . 35 . . . . 72 . 6271 Explosions 10070 | . . . . 645 1249 691 . . 648 . . . . . . . . . 43 . 6794 Melee 1803 | . . . . . . . . . . . . 326 . . . . 374 680 . 283 140 Ramming . | . . . . . . . . . . . . . . . . . . . . . . Kinetic 3628 | 63 867 375 . 133 . . . . . . . . . . . . . . . . 2190 Thermal 13542 | 78 45 . . 468 733 263 1219 . 483 . 106 . . 35 . . . . 115 . 9997 Explosive 2827 | . . . . 239 1249 691 . . 648 . . . . . . . . . . . . Electromagnetic 2195 | . . . . . . . . . . . . . . . . . . . . . 2195 Impact . | . . . . . . . . . . . . . . . . . . . . . . Slashing 1803 | . . . . . . . . . . . . 326 . . . . 374 680 . 283 140 Piercing . | . . . . . . . . . . . . . . . . . . . . . . Highest Corruption 76 | . . . . . 2 2 2 . 7 7 7 7 7 . . . 8 8 8 . 76 Average Corruption 19 | . . . . . 2 2 1 . 5 7 7 7 7 . . . 8 8 8 . 45 Corruption Purged 43 | . . . . . . . 2 . . . . . . . . . . . . . 41 Corruption Blocked 2 | . . . . . . . . . . . . . . 2 . . . . . . . Effects 166 | . . . . . 3 6 5 . 19 4 9 3 4 . . . 1 6 8 . 98 Message Errors 25 | . . . . . 1 2 . . 3 1 1 1 3 . . . . 2 1 . 10 Matter Fused 40 | . . . . . . 2 . . 6 1 2 2 1 . . . . 2 3 . 21 Heat Flow Errors 20 | . . . . . . . 2 . 2 . 3 . . . . . . . 2 . 11 Energy Discharges 15 | . . . . . . . . . 3 . 1 . . . . . 1 . 1 . 9 Parts Rejected 3 | . . . . . 1 . . . 1 . . . . . . . . . . . 1 Parts Fused 3 | . . . . . . . 1 . 1 1 . . . . . . . . . . . Data Loss (minor) 19 | . . . . . . 2 1 . 1 1 1 . . . . . . 2 1 . 10 Data Loss (major) 4 | . . . . . . . . . . . . . . . . . . . . . 4 Misfires 4 | . . . . . . . . . 1 . 1 . . . . . . . . . 2 Alerts 3 | . . . . . 1 . . . . . . . . . . . . . . . 2 Misdirections 9 | . . . . . . . . . . . . . . . . . . . . . 9 Weapon Failures 21 | . . . . . . . 1 . 1 . . . . . . . . . . . 19 Overload Shots 5 | . . . . . . . . 1 4 . . . . . . . . . . . . Overflow Damage 1408 | . . . . 170 33 . . . 56 . 26 105 . . . . 127 101 20 30 740 Projectiles 522 | . . . . 1 2 . . . 41 . 26 . . . . . . . . . 452 Explosions 461 | . . . . 169 31 . . . 15 . . . . . . . . . 20 . 226 Melee 425 | . . . . . . . . . . . . 105 . . . . 127 101 . 30 62 Knockbacks 24 | . 8 3 . . . . . . . . . . . . . . . . . . 13 Impact . | . . . . . . . . . . . . . . . . . . . . . . Kinetic 22 | . 8 2 . . . . . . . . . . . . . . . . . . 12 Secondary 2 | . . 1 . . . . . . . . . . . . . . . . . . 1 Self-Inflicted Damage 278 | . . . . . . 29 . . 24 . . . . . . . . . . . 225 Shots 13 | . . . . . . 1 . . 1 . . . . . . . . . . . 11 Rammed . | . . . . . . . . . . . . . . . . . . . . . . Targets Rammed . | . . . . . . . . . . . . . . . . . . . . . . Kicked . | . . . . . . . . . . . . . . . . . . . . . . Crushed . | . . . . . . . . . . . . . . . . . . . . . . Highest Temperature 465 | . 48 13 . 302 285 122 263 138 250 18 248 . 1 342 63 . 33 . 179 6 465 Average Temperature 85 | . 15 13 . 87 101 54 73 58 51 13 65 . 1 90 47 . 22 . 24 4 110 Received Heat Transfer 1560 | . 237 87 . . 111 31 27 27 30 . 21 . . 9 . . 9 9 48 18 896 Effects 8 | . . . . . 3 . . . . . . . . . . . . . . . 5 Energy Bleed 1 | . . . . . . . . . . . . . . . . . . . . . 1 Interference 5 | . . . . . 3 . . . . . . . . . . . . . . . 2 Matter Decay 1 | . . . . . . . . . . . . . . . . . . . . . 1 Damage (minor) 1 | . . . . . . . . . . . . . . . . . . . . . 1 Siege Activations 4 | . . . . . . . . . . . . . . . . . . . . . 4 Total Turns 364 | . . . . . . . . . . . . . . . . . . . . . 364 Longest Duration 285 | . . . . . . . . . . . . . . . . . . . . . 285 Martial Activations . | . . . . . . . . . . . . . . . . . . . . . . Shielding Activations . | . . . . . . . . . . . . . . . . . . . . . . Robots Disrupted . | . . . . . . . . . . . . . . . . . . . . . . Combat Hostiles . | . . . . . . . . . . . . . . . . . . . . . . Robots Corrupted 16 | . . . . . . . . . . . . . . . . . . . . . 16 Combat Hostiles 16 | . . . . . . . . . . . . . . . . . . . . . 16 Parts Fried 26 | . . . . . . . . . . . . . . . . . . . . . 26 Impact Corruptions . | . . . . . . . . . . . . . . . . . . . . . . Robots Melted 6 | . . . . . 1 . . . . . . . . . . . . . . . 5 Combat Hostiles 5 | . . . . . . . . . . . . . . . . . . . . . 5 Parts Melted 9 | . . . . . 3 . . . 1 . . . . . . . . . . . 5 Heat Transferred 9850 | 175 100 . . 374 851 279 1628 . 481 . 111 . . 37 . . . . 178 . 5636 Parts Sabotaged . | . . . . . . . . . . . . . . . . . . . . . . Parts Stolen . | . . . . . . . . . . . . . . . . . . . . . . Parts Stripped . | . . . . . . . . . . . . . . . . . . . . . . Power Chain Reactions 4 | . . . . . . . . . . . . . . . . . . . . . 4 Alert | -11 -10 -10 -7 -5 -5 -5 -5 -5 -4 -4 -4 -4 -3 -3 -3 -3 -2 -2 -2 -1 -1 ------- Run | Yrd Mat Sub Scr Fac Ext Cet Arc Hub Fac Upp Upp Zhi Pro Res Arm Lab Res Qua Frg Acc Com Maximum Alert Level 3 | . . . . 1 2 2 1 2 1 . . . . 1 . . . . . . 3 Low Security (%) 72 | 100 100 . . 83 55 . 2 54 71 . . . . 67 100 . 100 100 100 100 62 Level 1 16 | . . . . 16 37 6 97 32 28 . . . . 32 . . . . . . 10 Level 2 7 | . . . . . 6 93 . 13 . . . . . . . . . . . . 15 Level 3 2 | . . . . . . . . . . . . . . . . . . . . . 12 Level 4 . | . . . . . . . . . . . . . . . . . . . . . . Level 5 . | . . . . . . . . . . . . . . . . . . . . . . High Security . | . . . . . . . . . . . . . . . . . . . . . . Max Security . | . . . . . . . . . . . . . . . . . . . . . . Peak Influence 851 | 5 107 . . 278 605 646 329 486 345 . . . . 344 17 . 74 56 63 88 851 Initial 338 | . . . . . 8 338 222 88 224 . . . . 300 5 . . 30 . . 41 Average 144 | . 28 . . 47 224 540 293 189 114 . . . . 109 5 . 24 17 12 51 288 Influence Increases 7666 | 15 319 80 . 722 1335 398 291 901 770 . 30 15 . 480 39 . 179 160 244 158 1530 Destroy 0b10 Robot/C 2220 | . 160 80 . 120 600 160 80 260 100 . . . . . . . . . . . 660 Destroy 0b10 Robot/NC 275 | 15 30 . . 40 35 10 30 10 20 . . 15 . . . . 15 25 . 10 20 Destroy Leader 332 | . 46 . . 36 60 . . 62 20 . . . . . . . 4 2 . 2 100 Allied During Kill 976 | . . . . 3 406 164 104 299 . . . . . . . . . . . . . Successful Hack 543 | . 16 . . 36 8 . . . 168 . . . . 57 12 . 36 16 38 23 133 Select Force Hacks 150 | . . . . . . . . 150 . . . . . . . . . . . . . Disable Machine 570 | . 30 . . 165 15 . 45 45 45 . . . . . 15 . 15 75 75 15 30 Anti-Garrison Action 50 | . . . . . . . . . . . . . . . . . . . . . 50 Destroy Structure 1515 | . 7 . . 262 136 64 32 60 132 . . . . 48 12 . 79 42 116 33 492 Advance Influence 300 | . . . . . . . . . . . . . . 300 . . . . . . . Partial Spotted 255 | . . . . 45 60 . . 15 30 . . . . 30 . . 15 . 15 15 30 Lose Combat Pursuer 480 | . 30 . . 15 15 . . . 255 . 30 . . 45 . . 15 . . 60 15 Influence Decreases 6837 | 15 260 139 . 704 748 447 592 697 1178 51 25 20 . 469 48 2 125 214 244 93 766 Entered New Map 1123 | . . 29 . . 10 267 334 167 235 20 . 5 . . 6 2 . 24 . . 24 Time Decay 2862 | 15 250 110 . 180 278 160 198 90 359 31 25 15 . 143 42 . 85 190 176 93 422 Lost Part 250 | . 10 . . . 20 . . . 20 . . . . . . . 20 . 10 . 170 Lost Ally 400 | . . . . 20 140 20 60 140 . . . . . . . . 20 . . . . Purge Threat 2202 | . . . . 504 300 . . 300 564 . . . . 326 . . . . 58 . 150 Squads Dispatched 66 | . . . . 13 1 . . 4 11 . . . . 3 5 . 4 3 6 2 14 Investigation 35 | . . . . 8 1 . . 4 8 . . . . 3 3 . 1 . 4 1 2 Extermination 12 | . . . . 1 . . . . 2 . . . . . 1 . . 3 1 1 3 Reinforcement 17 | . . . . 4 . . . . 1 . . . . . 1 . 3 . 1 . 7 Assault 2 | . . . . . . . . . . . . . . . . . . . . . 2 Garrison . | . . . . . . . . . . . . . . . . . . . . . . Intercept . | . . . . . . . . . . . . . . . . . . . . . . Searches Triggered . | . . . . . . . . . . . . . . . . . . . . . . Construction Impeded . | . . . . . . . . . . . . . . . . . . . . . . Haulers Reinforced . | . . . . . . . . . . . . . . . . . . . . . . Active Scanning Responses . | . . . . . . . . . . . . . . . . . . . . . . Cargo Convoy Interrupts . | . . . . . . . . . . . . . . . . . . . . . . Stealth | -11 -10 -10 -7 -5 -5 -5 -5 -5 -4 -4 -4 -4 -3 -3 -3 -3 -2 -2 -2 -1 -1 --------- Run | Yrd Mat Sub Scr Fac Ext Cet Arc Hub Fac Upp Upp Zhi Pro Res Arm Lab Res Qua Frg Acc Com Distress Signals 24 | . 2 . . 2 1 2 . 1 2 . . . . 2 . . 2 . 1 1 8 Communications Jammed 25 | . . . . . . . . . . . . . . 11 4 . . 6 . . 4 Distress Signals 25 | . . . . . . . . . . . . . . 11 4 . . 6 . . 4 Times Spotted 307 | . 19 7 . 14 30 12 40 7 34 . 2 . 4 11 3 . 7 8 18 13 78 Peak Tracking Total 18 | . 3 2 . 3 6 5 2 6 6 . 2 . 2 5 1 . 4 7 7 6 18 Tactical Retreats 24 | . 2 . . 1 1 . . . 8 . 2 . . 1 . . 1 3 . 3 2 Traps | -11 -10 -10 -7 -5 -5 -5 -5 -5 -4 -4 -4 -4 -3 -3 -3 -3 -2 -2 -2 -1 -1 ------- Run | Yrd Mat Sub Scr Fac Ext Cet Arc Hub Fac Upp Upp Zhi Pro Res Arm Lab Res Qua Frg Acc Com Traps Triggered 13 | . . . . 2 6 . . . . . . . . 2 . . . . 1 . 2 Indirectly . | . . . . . . . . . . . . . . . . . . . . . . Trap Hack Attempts . | . . . . . . . . . . . . . . . . . . . . . . Triggered . | . . . . . . . . . . . . . . . . . . . . . . Disarmed . | . . . . . . . . . . . . . . . . . . . . . . Reprogrammed . | . . . . . . . . . . . . . . . . . . . . . . Reused . | . . . . . . . . . . . . . . . . . . . . . . Traps Extracted . | . . . . . . . . . . . . . . . . . . . . . . Installed . | . . . . . . . . . . . . . . . . . . . . . . Triggered . | . . . . . . . . . . . . . . . . . . . . . . Machines | -11 -10 -10 -7 -5 -5 -5 -5 -5 -4 -4 -4 -4 -3 -3 -3 -3 -2 -2 -2 -1 -1 ---------- Run | Yrd Mat Sub Scr Fac Ext Cet Arc Hub Fac Upp Upp Zhi Pro Res Arm Lab Res Qua Frg Acc Com Machines Disabled 47 | . 2 1 . 11 2 . 3 3 3 . . . . . 1 1 2 5 8 1 4 Max in Single Turn 5 | . 1 1 . 5 1 . 1 1 1 . . . . . 1 1 1 1 2 1 2 Garrison Access 6 | . . . . 2 . . . 1 1 . . . . 1 . . . 1 . . . Phase Generator 1 | . . . . . . . . . . . . . . . . . . . . . 1 Network Hub 4 | . . . . . . . . 4 . . . . . . . . . . . . . Machines Repaired . | . . . . . . . . . . . . . . . . . . . . . . Machines Dismantled 1 | . . . . . . . . 1 . . . . . . . . . . . . . Machines Sabotaged 3 | . . . . . . . . 3 . . . . . . . . . . . . . Overloaded Fab Kills . | . . . . . . . . . . . . . . . . . . . . . . Hacking | -11 -10 -10 -7 -5 -5 -5 -5 -5 -4 -4 -4 -4 -3 -3 -3 -3 -2 -2 -2 -1 -1 --------- Run | Yrd Mat Sub Scr Fac Ext Cet Arc Hub Fac Upp Upp Zhi Pro Res Arm Lab Res Qua Frg Acc Com Machines Accessed 119 | . 5 2 1 19 10 1 . 6 19 . . 4 . 7 5 2 2 11 12 5 8 Terminals 66 | . 5 . . 10 9 1 . 5 9 . . . . 2 1 . 1 8 5 4 6 Fabricators 11 | . . . . 1 . . . . 3 . . . . 1 2 . . . 4 . . Repair Stations 5 | . . . . . . . . . 2 . . . . 1 1 . . . . . 1 Recycling Units 18 | . . . . 5 1 . . . 3 . . . . 2 1 . 1 . 3 1 1 Scanalyzers 4 | . . . . 1 . . . . 1 . . . . . . . . 2 . . . Garrison Access 6 | . . . . 2 . . . 1 1 . . . . 1 . . . 1 . . . Total Hacks 496 | . 10 6 5 47 16 1 . 25 148 . . 17 . 31 22 2 11 39 63 17 36 Successful 255 | . 7 6 5 25 11 1 . 12 86 . . 17 . 22 10 2 6 11 13 4 17 Failed 241 | . 3 . . 22 5 . . 13 62 . . . . 9 12 . 5 28 50 13 19 Catastrophic 51 | . . . . 3 . . . 1 9 . . . . 2 2 . . 8 17 2 7 Database Lockouts . | . . . . . . . . . . . . . . . . . . . . . . Manual 251 | . 10 . . 22 1 1 . 18 94 . . . . 22 14 . 4 15 29 6 15 Terminals 335 | . 10 . . 30 15 1 . 24 111 . . . . 16 5 . 10 35 33 12 33 Fabricators 66 | . . . . 1 . . . . 24 . . . . 6 13 . . . 22 . . Repair Stations 9 | . . . . . . . . . 4 . . . . 1 3 . . . . . 1 Recycling Units 38 | . . . . 10 1 . . . 3 . . . . 7 1 . 1 . 8 5 2 Scanalyzers 11 | . . . . 3 . . . . 5 . . . . . . . . 3 . . . Garrison Access 7 | . . . . 3 . . . 1 1 . . . . 1 . . . 1 . . . Terminal Hacks 147 | . . 6 5 12 10 1 . 8 48 . . 17 . 9 . 2 3 3 7 3 13 Record 19 | . . 5 5 . . . . . . . . 5 . . . 2 . 2 . . . Part Schematic 14 | . . . . . . . . 2 6 . . 4 . 2 . . . . . . . Robot Schematic 1 | . . . . . . . . . 1 . . . . . . . . . . . . Robot Analysis 11 | . . . . 2 . . . 1 4 . . 4 . . . . . . . . . Prototype ID Bank 6 | . . . . . . . . . 2 . . 4 . . . . . . . . . Open Door 13 | . . . . . 8 1 . . . . . . . . . . . . . 3 1 Level Access Points 2 | . . . . . . . . . . . . . . 1 . . . . 1 . . Branch Access Points 4 | . . . . 1 . . . . 1 . . . . 1 . . 1 . . . . Emergency Access Points 1 | . . . . . . . . . . . . . . . . . . . 1 . . Terminal Index 4 | . . . . 1 . . . 1 1 . . . . . . . . . . . 1 Fabricator Index 1 | . . . . . . . . . 1 . . . . . . . . . . . . Recycling Unit Index 2 | . . . . . . . . . 1 . . . . . . . . . . . 1 Scanalyzer Index 1 | . . . . . . . . . 1 . . . . . . . . . . . . Garrison Index 2 | . . . . . . . . . 1 . . . . . . . . . . . 1 Alert Level 9 | . . . . 1 . . . 1 3 . . . . 1 . . 1 . 1 . 1 Unreport Threat 19 | . . . . 4 2 . . 2 5 . . . . 3 . . . . 2 . 1 Locate Traps 8 | . . . . 2 . . . . 1 . . . . 1 . . 1 1 1 . 1 Dispatch Records 2 | . . . . . . . . . 1 . . . . . . . . . . . 1 Maintenance Status 1 | . . . . . . . . . 1 . . . . . . . . . . . . Security Status 2 | . . . . . . . . . 2 . . . . . . . . . . . . Surveillance Status 1 | . . . . . . . . . . . . . . . . . . . . . 1 Patrol Status 1 | . . . . . . . . . . . . . . . . . . . . . 1 Transport Status 1 | . . . . . . . . . 1 . . . . . . . . . . . . Assault Status 1 | . . . . . . . . . 1 . . . . . . . . . . . . Recall Investigation 6 | . . . . . . . . . 6 . . . . . . . . . . . . Recall Extermination 3 | . . . . 1 . . . . 2 . . . . . . . . . . . . Recall Reinforcements 2 | . . . . . . . . . 2 . . . . . . . . . . . . Recall Assault 1 | . . . . . . . . . . . . . . . . . . . 1 . . Hauler Manifests 1 | . . . . . . . . . 1 . . . . . . . . . . . . Registered Components 1 | . . . . . . . . . 1 . . . . . . . . . . . . Zone Layout 5 | . . . . . . . . 1 2 . . . . . . . . . . . 2 Proto ID Catalog 1 | . . 1 . . . . . . . . . . . . . . . . . . . Disengage Seal 1 | . . . . . . . . . . . . . . . . . . . . . 1 Fabricator Hacks 14 | . . . . 1 . . . . 6 . . . . 1 4 . . . 2 . . Network Status 2 | . . . . 1 . . . . . . . . . 1 . . . . . . . Load Schematic 6 | . . . . . . . . . 3 . . . . . 2 . . . 1 . . Build 6 | . . . . . . . . . 3 . . . . . 2 . . . 1 . . Repair Station Hacks . | . . . . . . . . . . . . . . . . . . . . . . Recycling Unit Hacks 3 | . . . . . . . . . . . . . . 2 . . . . . . 1 Retrieve Matter 1 | . . . . . . . . . . . . . . 1 . . . . . . . Retrieve Components 2 | . . . . . . . . . . . . . . 1 . . . . . . 1 Scanalyzer 9 | . . . . 2 . . . . 4 . . . . . . . . 3 . . . Insert Component 6 | . . . . 1 . . . . 2 . . . . . . . . 3 . . . Analyze 3 | . . . . 1 . . . . 2 . . . . . . . . . . . . Garrison Access Hacks 6 | . . . . 2 . . . 1 1 . . . . 1 . . . 1 . . . Seal Access 6 | . . . . 2 . . . 1 1 . . . . 1 . . . 1 . . . Unauthorized Hacks 75 | . 7 . . 8 1 . . 3 27 . . . . 9 6 . 3 4 4 . 3 Terminals 31 | . 7 . . 2 . . . 3 9 . . . . 1 . . 2 4 1 . 2 Track 2 | . . . . . . . . . 2 . . . . . . . . . . . . Assimilate 4 | . . . . 1 . . . . 2 . . . . . . . 1 . . . . Botnet 14 | . 2 . . 1 . . . . 3 . . . . 1 . . 1 3 1 . 2 Operators 1 | . . . . . . . . . . . . . . . . . . 1 . . . Skim 7 | . 5 . . . . . . . 2 . . . . . . . . . . . . Sabotage 3 | . . . . . . . . 3 . . . . . . . . . . . . . Fabricators 19 | . . . . . . . . . 11 . . . . 4 4 . . . . . . Report 5 | . . . . . . . . . 3 . . . . 1 1 . . . . . . Prioritize 5 | . . . . . . . . . 2 . . . . 1 2 . . . . . . Fabnet 4 | . . . . . . . . . 3 . . . . 1 . . . . . . . Haulers 5 | . . . . . . . . . 3 . . . . 1 1 . . . . . . Repair Stations 6 | . . . . . . . . . 3 . . . . 1 1 . . . . . 1 Mechanics 2 | . . . . . . . . . 1 . . . . . 1 . . . . . . Patch 4 | . . . . . . . . . 2 . . . . 1 . . . . . . 1 Recycling Units 17 | . . . . 5 1 . . . 3 . . . . 3 1 . 1 . 3 . . Reject 1 | . . . . . . . . . . . . . . 1 . . . . . . . Fedlink 16 | . . . . 5 1 . . . 3 . . . . 2 1 . 1 . 3 . . Scanalyzers 2 | . . . . 1 . . . . 1 . . . . . . . . . . . . Researchers 2 | . . . . 1 . . . . 1 . . . . . . . . . . . . Garrison Access . | . . . . . . . . . . . . . . . . . . . . . . Data Cores Recovered . | . . . . . . . . . . . . . . . . . . . . . . Used . | . . . . . . . . . . . . . . . . . . . . . . Hacking Detections 61 | . 3 . . 13 2 1 . 3 12 . . . . 4 4 . 1 5 8 1 4 Full Trace Events 10 | . . . . 2 . . . . 3 . . . . . 2 . . . 1 1 1 Feedback Events . | . . . . . . . . . . . . . . . . . . . . . . Feedback Blocked 1 | . . . . . . . . . . . . . . . . . . . . . 1 Robot Schematics Acquired 1 | . . . . . . . . . 1 . . . . . . . . . . . . Robots Built . | . . . . . . . . . . . . . . . . . . . . . . Authchips . | . . . . . . . . . . . . . . . . . . . . . . Time . | . . . . . . . . . . . . . . . . . . . . . . Total Robot Build Rating . | . . . . . . . . . . . . . . . . . . . . . . Part Schematics Acquired 20 | . . . . 1 . . . 2 8 . . 4 . 2 . . . . 3 . . Parts Built 6 | . . . . . . . . . 2 . . . . . 3 . . . 1 . . Authchips . | . . . . . . . . . . . . . . . . . . . . . . Time 431 | . . . . . . . . . 322 . . . . . 74 . . . 35 . . Total Part Build Rating 33 | . . . . . . . . . 13 . . . . . 14 . . . 6 . . Parts Repaired . | . . . . . . . . . . . . . . . . . . . . . . Time . | . . . . . . . . . . . . . . . . . . . . . . Parts Recycled . | . . . . . . . . . . . . . . . . . . . . . . Recycled Matter . | . . . . . . . . . . . . . . . . . . . . . . Retrieved Matter . | . . . . . . . . . . . . . . . . . . . . . . Retrieved Components 6 | . . . . . . . . . . . . . . 3 . . . . . . 3 Parts Scanalyzed 3 | . . . . 1 . . . . 2 . . . . . . . . . . . . Part Schematics Acquired 3 | . . . . 1 . . . . 2 . . . . . . . . . . . . Parts Damaged . | . . . . . . . . . . . . . . . . . . . . . . Bothacking | -11 -10 -10 -7 -5 -5 -5 -5 -5 -4 -4 -4 -4 -3 -3 -3 -3 -2 -2 -2 -1 -1 ------------ Run | Yrd Mat Sub Scr Fac Ext Cet Arc Hub Fac Upp Upp Zhi Pro Res Arm Lab Res Qua Frg Acc Com Used RIF Installer . | . . . . . . . . . . . . . . . . . . . . . . Robots Hacked 36 | . . . . . 2 . . . 2 . . . 1 11 1 . 3 3 2 2 9 Non-combat 3 | . . . . . 2 . . . 1 . . . . . . . . . . . . Combat 14 | . . . . . . . . . . . . . 1 5 1 . . . . . 7 Robot Hacks Applied 4 | . . . . . 2 . . . 1 . . . . . . . . . . . 1 parse_system 2 | . . . . . . . . . 1 . . . . . . . . . . . 1 no_distress 2 | . . . . . 2 . . . . . . . . . . . . . . . . Manual 19 | . . . . . . . . . 1 . . . . 6 . . 3 3 2 2 2 Relay Couplers Released . | . . . . . . . . . . . . . . . . . . . . . . Fabnet Peak Effective % 9 | . . . . . . . . . . . . . 9 9 9 9 6 6 6 1 1 Autooverrided 13 | . . . . . . . . . . . . . 1 5 1 . . . . . 6 Robots Rewired 11 | . . . . . 8 . . . . . . . . . 3 . . . . . . Allies Hacked 1 | . . . . . . . . . . . . . . . . . 1 . . . . Hacks Repelled . | . . . . . . . . . . . . . . . . . . . . . . Allies | -11 -10 -10 -7 -5 -5 -5 -5 -5 -4 -4 -4 -4 -3 -3 -3 -3 -2 -2 -2 -1 -1 -------- Run | Yrd Mat Sub Scr Fac Ext Cet Arc Hub Fac Upp Upp Zhi Pro Res Arm Lab Res Qua Frg Acc Com Total Allies 42 | . . . 1 . 19 5 . . 1 . . . 1 5 4 . . . . . 6 Largest Group 13 | . . . 1 1 11 13 13 10 1 1 . . 1 2 3 3 3 . . . 4 Highest-Rated Group 678 | . . . 60 60 415 678 678 610 10 10 . . 56 112 192 192 192 . . . 239 Highest-Rated Ally 159 | . . . 60 60 159 152 96 96 10 10 . . 56 64 64 64 64 . . . 82 Total Orders 5 | . . . . . . . 2 . . . . . . . 1 2 . . . . . STAY 3 | . . . . . . . 1 . . . . . . . 1 1 . . . . . FOLLOW 2 | . . . . . . . 1 . . . . . . . . 1 . . . . . Ally Attacks 360 | . . . . 27 127 58 67 64 . . . . 4 5 . . . . . . 8 Total Damage 9423 | . . . . 653 3033 1303 1981 1864 . . . . 95 149 . . . . . . 345 Kills 56 | . . . . 7 22 8 4 15 . . . . . . . . . . . . . Allies Corrupted 2 | . . . . . . . . 2 . . . . . . . . . . . . . Allies Melted 2 | . . . . . . . . . . . . . . . . . . . 1 . 1 Intel | -11 -10 -10 -7 -5 -5 -5 -5 -5 -4 -4 -4 -4 -3 -3 -3 -3 -2 -2 -2 -1 -1 ------- Run | Yrd Mat Sub Scr Fac Ext Cet Arc Hub Fac Upp Upp Zhi Pro Res Arm Lab Res Qua Frg Acc Com Active Infowar (turns) 6596 | . 447 . . 463 637 36 89 199 868 199 235 86 141 389 157 767 193 438 569 216 467 Sensors 5368 | . . . . 378 273 . 89 199 866 199 235 86 140 389 157 767 193 412 525 216 244 Terrain 5579 | . 447 . . 279 364 36 . 154 858 199 235 81 141 378 157 767 193 438 358 187 307 Cloaking 2498 | . . . . . . . . . . . . . 131 387 157 767 190 158 403 84 221 Jamming 2410 | . . . . . . . . . 56 . 97 86 7 319 151 761 46 216 382 74 215 ECM 230 | . . . . . . . . . . . . . . . 52 . 8 83 . 50 37 Robot Analysis Total 11 | . . . . 2 . . . 1 4 . . 4 . . . . . . . . . Derelict Logs Recovered 7 | . . . 3 . . . . . . 1 3 . . . . . . . . . . Drone Launches . | . . . . . . . . . . . . . . . . . . . . . . Drone Recoveries . | . . . . . . . . . . . . . . . . . . . . . . Exploration | -11 -10 -10 -7 -5 -5 -5 -5 -5 -4 -4 -4 -4 -3 -3 -3 -3 -2 -2 -2 -1 -1 ------------- Run | Yrd Mat Sub Scr Fac Ext Cet Arc Hub Fac Upp Upp Zhi Pro Res Arm Lab Res Qua Frg Acc Com Turns Passed 15734 | 163 1182 1517 4651 578 639 328 400 199 868 199 235 86 141 389 157 767 193 438 649 216 1739 Spaces Moved 14301 | 82 451 577 1836 1187 752 349 294 418 1497 542 461 174 331 747 231 525 273 961 1072 486 1055 Core 9 | 5 . . . . 1 . . . . . . . . . . . . . . . 3 Treads 3215 | 77 451 577 1836 . . . . . . . . . . . . . . . . . 274 Legs 41 | . . . . . . . . . . . . . . . . . . . . . 41 Wheels . | . . . . . . . . . . . . . . . . . . . . . . Hover . | . . . . . . . . . . . . . . . . . . . . . . Flight 11036 | . . . . 1187 751 349 294 418 1497 542 461 174 331 747 231 525 273 961 1072 486 737 Fastest Speed 26 | 50 160 240 250 30 30 30 30 30 30 34 31 34 31 31 31 34 28 28 28 26 26 Average Speed 78 | 153 212 246 250 32 31 35 30 30 33 34 33 34 33 34 36 34 34 31 31 29 77 Slowest Speed 500 | 160 240 250 250 96 500 96 30 30 80 34 34 34 34 37 97 34 97 97 108 30 330 Overloaded Moves 165 | . . . . . . . . . . . 4 . 4 6 40 . 17 16 22 54 2 Propulsion Burnouts . | . . . . . . . . . . . . . . . . . . . . . . Robots Hopped 43 | . . . . 6 3 . 1 1 14 1 2 . . 10 2 . . 1 2 . . Potential Cave-ins 24 | . . . . . 9 . . . 5 . . . . 2 . . 3 . 4 . 1 Cave-ins Triggered 3 | . . . . . 1 . . . 1 . . . . . . . 1 . . . . Teleports 2 | . . . . . . . . . . . . . . . 1 . . . 1 . . Exploration Rate (%) 49 | 8 62 34 84 43 63 71 81 30 36 76 54 60 45 26 16 94 11 87 49 11 39 Regions Visited 21 Branch Regions 15 Pre-discovered Areas 8 | . 1 . 1 1 . . . . . 1 1 3 . . . . . . . . . Known Exits Taken 18 | . 1 . . 1 1 1 1 1 1 1 1 1 1 1 1 1 1 1 1 1 . Unknown Exits Taken 3 | 1 . 1 1 . . . . . . . . . . . . . . . . . . Scrap Searched 9 | . . 3 4 . . . . . . 1 . . 1 . . . . . . . . Spaces Dug 272 | . 6 . . 24 40 . 1 11 45 5 2 . 1 25 6 . 12 14 42 17 21 Terrain Destroyed 884 | . 6 . . 142 126 96 12 11 81 5 3 . 1 26 6 . 39 15 101 17 197 Melee 78 | . . . . . . . . . 4 . . . 1 8 5 . 12 11 14 9 14 Projectile 186 | . 6 . . 25 16 . 12 11 49 5 3 . . 18 1 . 2 4 8 8 18 AOE 619 | . . . . 117 110 96 . . 28 . . . . . . . 25 . 79 . 164 Terrain Rammed . | . . . . . . . . . . . . . . . . . . . . . . Walls Destroyed . | . . . . . . . . . . . . . . . . . . . . . . Machines Disabled . | . . . . . . . . . . . . . . . . . . . . . . Actions | -11 -10 -10 -7 -5 -5 -5 -5 -5 -4 -4 -4 -4 -3 -3 -3 -3 -2 -2 -2 -1 -1 --------- Run | Yrd Mat Sub Scr Fac Ext Cet Arc Hub Fac Upp Upp Zhi Pro Res Arm Lab Res Qua Frg Acc Com Total 17796 | 101 558 636 1915 1321 1092 530 527 462 1765 550 531 195 357 837 290 1113 337 1051 1327 529 1772 Wait 1978 | 1 24 14 12 34 152 135 147 11 152 5 68 3 13 50 23 555 24 27 141 10 377 Move 14196 | 81 450 576 1835 1174 745 348 291 415 1469 539 456 173 330 727 227 524 271 958 1067 485 1055 Hop 38 | . . . . 6 2 . 1 1 12 1 2 . . 9 1 . . 1 2 . . Pick Up 129 | 5 16 6 30 6 2 5 . . 6 . . 2 1 2 1 8 6 7 10 3 13 Fast Attach 135 | 5 5 1 1 10 2 4 6 1 12 . . 6 5 4 1 3 1 4 18 . 46 Attach 71 | 1 . . 3 14 . 2 . 3 1 . . . . 2 1 5 4 3 13 2 17 Detach 72 | . 3 . 4 8 . 2 4 3 4 . . . 1 2 1 5 . 1 11 2 21 Swap 93 | . 1 4 . 2 10 4 2 . 12 . . 1 1 3 3 1 3 11 13 2 20 Drop 175 | . 4 12 30 9 1 9 1 . 10 . . 7 5 2 1 9 5 6 21 2 41 Fire 624 | 8 55 23 . 58 51 21 75 24 76 5 5 . . 19 1 . 5 11 13 10 164 Melee 130 | . . . . . 2 . . . 10 . . 3 1 17 6 3 17 22 18 13 18 Ram . | . . . . . . . . . . . . . . . . . . . . . . Kick . | . . . . . . . . . . . . . . . . . . . . . . Crush . | . . . . . . . . . . . . . . . . . . . . . . Escape Stasis 105 | . . . . . 103 . . . 1 . . . . . . . 1 . . . . Rewire 46 | . . . . . 22 . . . . . . . . . 24 . . . . . . Trap . | . . . . . . . . . . . . . . . . . . . . . . Miscellaneous 4 | . . . . . . . . 4 . . . . . . . . . . . . . Route ------- -11/Scrapyard -10/Materials (discovered 4 exits: *Mat x2 / *Min / *Sub) -10/Subcaves (discovered 3 exits: [*Mat x2] / *Scr) -7/Scraptown (discovered 2 exits: *Fac x2) -5/Factory (discovered 7 exits: *Fac x3 / *Upp x2 / *Ext x2) -5/Extension (discovered 2 exits: *Fac / *Cet) -5/Cetus (discovered 2 exits: *Fac / *Arc) -5/Archives (discovered 3 exits: *Fac / *Hub x2) -5/Hub_04(d) (discovered 3 exits: *Fac x3) -4/Factory (discovered 3 exits: *Res / *Upp x2) -4/Upper Caves -4/Upper Caves (discovered 2 exits: *Res / *Zhi) -4/Zhirov -3/Proximity Caves -3/Research (discovered 6 exits: Res x3 / *Arm / *Tes x2) -3/Armory -3/Lab -2/Research (discovered 2 exits: *Qua x2) -2/Quarantine (discovered 2 exits: [*Sec] / *Frg) -2/Protoforge -1/Access -1/Command (discovered 2 exits: Sur x2) History --------- Turn | Location | Event 9 | -11/Scrapyard | Discovered new exit (range 15) 164 | -11/Scrapyard | Entered Materials 313 | -10/Materials | Build established: Mutant 469 | -10/Materials | Discovered new exit (range 16) 835 | -10/Materials | Discovered new exit (range 12) 994 | -10/Materials | Identified exit to Subcaves 1066 | -10/Materials | Identified exit to Mines 1127 | -10/Materials | Learned Storage trap positions 1179 | -10/Materials | Learned location of Subcaves (-10) 1253 | -10/Materials | Learned location of 2 exits from Mines 1295 | -10/Materials | Identified exit to Materials 1346 | -10/Materials | Entered Subcaves 1347 | -10/Subcaves | Approached by a straggling Scientist 1898 | -10/Subcaves | Visited 4L-MR0's lab 1929 | -10/Subcaves | Found Flightbrick 2462 | -10/Subcaves | Core integrity fell below 50% 2544 | -10/Subcaves | Discovered new exit (range 6) 2642 | -10/Subcaves | Visited Clippyterm 2649 | -10/Subcaves | Learned 40 Factory zone layouts 2649 | -10/Subcaves | Learned Factory stockpile data 2815 | -10/Subcaves | Scientist uncovered a shortcut to Scraptown 2818 | -10/Subcaves | Shifting Twisted Machinery released Sub. Beam Cannon 2824 | -10/Subcaves | Shifting Twisted Machinery released Battle Cannon 2832 | -10/Subcaves | Discovered new exit (range 9) 2863 | -10/Subcaves | Entered Scraptown 3238 | -7/Scraptown | Discovered new exit (range 11) 3531 | -7/Scraptown | Visited UFD Registry 3531 | -7/Scraptown | Registered with UFD as "Protonuts" 3918 | -7/Scraptown | Visited Curators Association 4043 | -7/Scraptown | Visited Chapter 10 4121 | -7/Scraptown | Visited Abandonware Association 4146 | -7/Scraptown | Learned abandonware demo "SHUTEYE.EXE" 4146 | -7/Scraptown | Learned abandonware demo "MELTYB.EXE" 4211 | -7/Scraptown | Visited Supply Room 4256 | -7/Scraptown | Visited LU-1G1's Boring Crew 4353 | -7/Scraptown | Delivered Scrap Shield to a Scientist 5066 | -7/Scraptown | Scanned Subdweller tech in exchange for log data 5074 | -7/Scraptown | Learned Factory emergency access door positions 5076 | -7/Scraptown | Learned Research security intel 5272 | -7/Scraptown | Visited CPS Storage 5326 | -7/Scraptown | Visited CR-KLE's Repair Center 5344 | -7/Scraptown | CR-KLE repaired 4 parts 6163 | -7/Scraptown | Visited Botcube Research 6175 | -7/Scraptown | Found Botcube 6499 | -7/Scraptown | Found Scrap Suit 7031 | -7/Scraptown | Found Scrap Suit 7104 | -7/Scraptown | Visited Scrap Suit Storage 7160 | -7/Scraptown | Found Scrap Suit 7187 | -7/Scraptown | Botcube activated 7205 | -7/Scraptown | Botcube completed mutation into treaded form, armed with 2 cannons. 7231 | -7/Scraptown | Found Scrap Suit 7369 | -7/Scraptown | Met Optimus 7369 | -7/Scraptown | Accepted into 0bPrime 7504 | -7/Scraptown | Discovered new exit (range 5) 7514 | -7/Scraptown | Entered Factory 7514 | -5/Factory | Accompanied by 1 ally 7514 | -5/Factory | Evolved 10 slots: Power x1, Propulsion x4, Utility x5 7515 | -5/Factory | Identified exit to Upper Caves 7515 | -5/Factory | Identified exit to Factory 7515 | -5/Factory | Identified exit to Extension 7520 | -5/Factory | Attached Flightbrick, gained temporary slots: Utility x3 7701 | -5/Factory | Loaded intel: 8 recycling unit locations 7824 | -5/Factory | Learned location of Protoforge (-2) 8092 | -5/Factory | Entered Extension 8116 | -5/Extension | Rescued a captive Derelict 8120 | -5/Extension | Rescued a captive Derelict 8247 | -5/Extension | Build established: Hacker-Sprinter 8307 | -5/Extension | Rescued a captive Derelict 8317 | -5/Extension | Rescued a captive Derelict 8337 | -5/Extension | Rescued A7 8364 | -5/Extension | Rescued a captive Derelict 8378 | -5/Extension | Rescued a captive Derelict 8378 | -5/Extension | Rescued a captive Derelict 8417 | -5/Extension | Disrupted transfer network 8424 | -5/Extension | Crushed by falling debris 8444 | -5/Extension | Rescued a captive Derelict 8573 | -5/Extension | Rescued a captive Derelict 8574 | -5/Extension | Rescued a captive Derelict 8576 | -5/Extension | Rescued a captive Derelict 8579 | -5/Extension | Rescued a captive Derelict 8620 | -5/Extension | Loaded intel: 1 recycling unit location 8674 | -5/Extension | Discovered new exit (range 12) 8683 | -5/Extension | Discovered exit to Factory (range 19) 8725 | -5/Extension | Identified exit to Cetus 8731 | -5/Extension | Entered Cetus 8731 | -5/Cetus | Accompanied by 11 allies (A7) 8736 | -5/Cetus | Acquired a Cetus Manufacturing Module code from A7 8738 | -5/Cetus | Spotted Cetus Guard 8738 | -5/Cetus | Spotted Cetus Guard 8739 | -5/Cetus | Spotted Cetus Guard 8745 | -5/Cetus | Spotted Cetus Guard 8745 | -5/Cetus | Allies destroyed Cetus Guard 8745 | -5/Cetus | Allies destroyed Cetus Guard 8757 | -5/Cetus | Allies destroyed Cetus Guard 8789 | -5/Cetus | Started Cetus Manufacturing Module 8800 | -5/Cetus | Escorted A7 to Cetus Mainframe 8811 | -5/Cetus | Discovered new exit (range 15) 8814 | -5/Cetus | Manufactured an Enhanced Grunt 8828 | -5/Cetus | Spotted Cetus Guard 8828 | -5/Cetus | Spotted Cetus Guard 8836 | -5/Cetus | Spotted Cetus Guard 8839 | -5/Cetus | Manufactured an Enhanced Grunt 8841 | -5/Cetus | Spotted Cetus Guard 8845 | -5/Cetus | Destroyed Cetus Guard 8852 | -5/Cetus | Destroyed Cetus Guard 8864 | -5/Cetus | Manufactured an Enhanced Grunt 8874 | -5/Cetus | Murdered A7 8876 | -5/Cetus | Extracted ID and sensor layout for unrecognized location from A7's data core 8877 | -5/Cetus | Found Prototype Protection 8877 | -5/Cetus | Identified Med. Regenerative Plating 8887 | -5/Cetus | Discovered exit to Factory (range 15) 8889 | -5/Cetus | Manufactured an Enhanced Grunt 8896 | -5/Cetus | Met Revision 17 8914 | -5/Cetus | Manufactured an Enhanced Grunt 9031 | -5/Cetus | Identified exit to Archives 9059 | -5/Cetus | Entered Archives 9059 | -5/Archives | Accompanied by 13 allies 9114 | -5/Archives | Discovered new exit (range 15) 9124 | -5/Archives | Lost 3 allies 9245 | -5/Archives | Discovered new exit (range 16) 9383 | -5/Archives | Discovered exit to Factory (range 16) 9437 | -5/Archives | Identified exit to Hub_04(d) 9459 | -5/Archives | Entered Hub_04(d) 9459 | -5/Hub_04(d) | Accompanied by 10 allies 9462 | -5/Hub_04(d) | Discovered exit to Factory (range 8) 9464 | -5/Hub_04(d) | Discovered exit to Factory (range 13) 9481 | -5/Hub_04(d) | Discovered exit to Factory (range 15) 9607 | -5/Hub_04(d) | Network Hub disabled 9617 | -5/Hub_04(d) | Network Hub disabled 9624 | -5/Hub_04(d) | Network Hub disabled 9631 | -5/Hub_04(d) | Network Hub disabled 9632 | -5/Hub_04(d) | Spotted Lightning 9632 | -5/Hub_04(d) | Spotted Lightning 9658 | -5/Hub_04(d) | Entered Factory 9658 | -4/Factory | Evolved 2 slots: Propulsion x1, Utility x1 9726 | -4/Factory | Identified exit to Upper Caves 9802 | -4/Factory | Build established: Hacker-Scout 9887 | -4/Factory | Crushed by falling debris 10081 | -4/Factory | Fabricated Lgt. Neutrino Core (x1) 10103 | -4/Factory | Fabricated Cld. Field Propulsion Drive (x1) 10274 | -4/Factory | Loaded intel: 8 recycling unit locations 10383 | -4/Factory | Discovered new exit (range 12) 10526 | -4/Factory | Entered Upper Caves 10526 | -4/Upper Caves | Accompanied by 1 ally 10528 | -4/Upper Caves | UFD Scientist delivered a prototype 10553 | -4/Upper Caves | Learned location of Testing (-3) 10656 | -4/Upper Caves | Build established: Hacker-Ninja 10709 | -4/Upper Caves | Discovered new exit (range 11) 10725 | -4/Upper Caves | Identified exit to Upper Caves 10725 | -4/Upper Caves | Entered another Upper Caves area 10727 | -4/Upper Caves | Learned location of Armory (-3) 10816 | -4/Upper Caves | Discovered new exit (range 10) 10875 | -4/Upper Caves | Attracted the attention of an 0b10 checkpoint 10909 | -4/Upper Caves | Learned 4 Research zone layouts 10912 | -4/Upper Caves | Encountered a Warlord checkpoint 10957 | -4/Upper Caves | Discovered new exit (range 8) 10959 | -4/Upper Caves | Identified exit to Zhirov 10960 | -4/Upper Caves | Entered Zhirov 10960 | -4/Zhirov | Discovered new exit (range 3) 10967 | -4/Zhirov | Met Zhirov 10973 | -4/Zhirov | Learned location of Quarantine (-2) 10973 | -4/Zhirov | Learned location of Command (-1) 10977 | -4/Zhirov | Zhirov requested help retrieving the SGEMP Prototype 10984 | -4/Zhirov | Found Alien Artifact 10984 | -4/Zhirov | Identified Integrated Reactor 10984 | -4/Zhirov | Installed Integrated Reactor, increased core energy generation (+10) 11033 | -4/Zhirov | Found Alien Artifact 11045 | -4/Zhirov | Identified exit to Proximity Caves 11046 | -4/Zhirov | Entered Proximity Caves 11103 | -3/Proximity Caves | Spotter reported a threat 11132 | -3/Proximity Caves | Spotter reported a threat 11186 | -3/Proximity Caves | Discovered new exit (range 5) 11187 | -3/Proximity Caves | Identified exit to Research 11187 | -3/Proximity Caves | Entered Research 11187 | -3/Research | Evolved 2 slots: Utility x2 11193 | -3/Research | Loaded intel: 5 recycling unit locations 11250 | -3/Research | Identified exit to Research 11250 | -3/Research | Found Prototype Processor 11313 | -3/Research | Identified exit to Armory 11313 | -3/Research | Identified exit to Testing 11317 | -3/Research | Identified Spectral Analyzer 11358 | -3/Research | Local machine network offline 11387 | -3/Research | Revision forces began assault on 0b10 11410 | -3/Research | Spotted B-86 Titan 11576 | -3/Research | Entered Armory 11605 | -3/Armory | Fabricated Adv. ECM Suite (x2) 11651 | -3/Armory | Loaded intel: 2 recycling unit locations 11666 | -3/Armory | Identified Transdimensional Reconstructor 11666 | -3/Armory | Warped through subspace to slip node 11666 | -3/Armory | Discovered new exit (range 1) 11666 | -3/Armory | Identified exit to Lab 11711 | -3/Armory | Fabricated Adv. Hacking Suite (x1) 11733 | -3/Armory | Entered Lab 11733 | -3/Lab | Accompanied by 3 allies 11733 | -3/Lab | Discovered exit to Research (range 9) 11737 | -3/Lab | Hidden lab's door opened automatically 11737 | -3/Lab | Sensor layout match revealed 11738 | -3/Lab | Gained access to the hidden lab's interior 11867 | -3/Lab | Unable to decrypt terminal 11875 | -3/Lab | Found Alien Artifact 11875 | -3/Lab | Identified Integrated Mediator 11875 | -3/Lab | Installed Integrated Mediator, increased core attachment efficiency 11881 | -3/Lab | Found Alien Artifact 11886 | -3/Lab | Found Transdimensional Reconstructor 11890 | -3/Lab | Found Alien Artifact 11904 | -3/Lab | Unable to decrypt terminal 11996 | -3/Lab | Found Prototype Energy Gun 12000 | -3/Lab | Identified Hyp. EM Gauss Rifle 12039 | -3/Lab | Found Prototype Special Weapon 12042 | -3/Lab | Identified Gui. Remote Datajack 12085 | -3/Lab | Found Prototype Energy Cannon 12413 | -3/Lab | Found Prototype Hackware 12416 | -3/Lab | Identified Quantum Router 12490 | -3/Lab | Identified Potential Cannon 12500 | -3/Lab | Entered Research 12500 | -2/Research | Accompanied by 3 allies 12500 | -2/Research | Evolved 2 slots: Propulsion x1, Utility x1 12501 | -2/Research | Identified exit to Quarantine 12548 | -2/Research | Found Fusion Bomb Launcher 12621 | -2/Research | Loaded intel: 5 recycling unit locations 12646 | -2/Research | Spotted B-90 Cyclops 12690 | -2/Research | Crushed by falling debris 12693 | -2/Research | Entered Quarantine 12732 | -2/Quarantine | Found Alien Artifact 12732 | -2/Quarantine | Identified Phase Redirector 12844 | -2/Quarantine | Identified Core Expander 12844 | -2/Quarantine | Installed Core Expander, added new Utility slot 12922 | -2/Quarantine | Found Alien Artifact 12924 | -2/Quarantine | Found Alien Artifact 12926 | -2/Quarantine | Found Alien Artifact 13034 | -2/Quarantine | Found Alien Artifact 13036 | -2/Quarantine | Identified Subatomic Replicator 13036 | -2/Quarantine | Used Subatomic Replicator to create Alien Artifact 13049 | -2/Quarantine | Identified Supercharged TR 13049 | -2/Quarantine | Identified Dimensional Node Initializer (x2) 13108 | -2/Quarantine | Spotted Fortress 13129 | -2/Quarantine | Discovered new exit (range 5) 13129 | -2/Quarantine | Discovered new exit (range 6) 13129 | -2/Quarantine | Identified exit to Protoforge 13131 | -2/Quarantine | Entered Protoforge 13415 | -2/Protoforge | Spotted EXE-6 13415 | -2/Protoforge | Spotted EXE-6 13418 | -2/Protoforge | Spotted SKR-2 13418 | -2/Protoforge | Spotted SKR-2 13418 | -2/Protoforge | Spotted SKR-2 13429 | -2/Protoforge | Superfortress began startup sequence 13434 | -2/Protoforge | UFD initiated attack on Protoforge 13434 | -2/Protoforge | Loaded intel: 3 recycling unit locations 13455 | -2/Protoforge | Found Scrap Suit 13460 | -2/Protoforge | Found Prototype Processor 13460 | -2/Protoforge | Identified Exp. Melee Analysis Suite 13465 | -2/Protoforge | Spotted EXE-6 13468 | -2/Protoforge | Spotted EXE-6 13470 | -2/Protoforge | Optimus greeted in Protoforge 13480 | -2/Protoforge | Initialized slip node 13519 | -2/Protoforge | Found Prototype Slashing Weapon 13519 | -2/Protoforge | Identified Exp. Terror Saw 13527 | -2/Protoforge | Warped through subspace to slip node 13529 | -2/Protoforge | Optimus attacked Superfortress 13530 | -2/Protoforge | Spotted Decapitator 13539 | -2/Protoforge | Spotted Striker 13543 | -2/Protoforge | Found Prototype Launcher 13543 | -2/Protoforge | Identified Hellfire Missile Launcher 13545 | -2/Protoforge | Found Prototype Power Core 13545 | -2/Protoforge | Identified Cep. Zero-point Core 13551 | -2/Protoforge | Found Prototype Device 13551 | -2/Protoforge | Identified Cep. Antimissile System 13554 | -2/Protoforge | Found Prototype Device 13554 | -2/Protoforge | Identified Exp. EM Disruption Field 13556 | -2/Protoforge | Found Prototype Storage 13556 | -2/Protoforge | Identified Cep. NT7 Matterbank 13560 | -2/Protoforge | Found Prototype Storage 13560 | -2/Protoforge | Identified Cep. Chromion Battery 13566 | -2/Protoforge | Lost 11 allies 13576 | -2/Protoforge | Found 0bPrime Scrap Suit 13584 | -2/Protoforge | Met 7R-MNS 13620 | -2/Protoforge | Lost 5 allies 13638 | -2/Protoforge | Fabricated Adv. Hacking Suite (x1) 13648 | -2/Protoforge | Spotted Striker 13652 | -2/Protoforge | Spotted Striker 13712 | -2/Protoforge | Spotted Hotshot 13721 | -2/Protoforge | Spotted Hotshot 13721 | -2/Protoforge | Spotted Hotshot 13748 | -2/Protoforge | Spotted Hotshot 13756 | -2/Protoforge | Spotted Hotshot 13757 | -2/Protoforge | Spotted Hotshot 13758 | -2/Protoforge | Spotted Hotshot 13776 | -2/Protoforge | Identified exit to Access 13780 | -2/Protoforge | Entered Access 13780 | -1/Access | Evolved 2 slots: Utility x1, Weapon x1 13994 | -1/Access | Discovered new exit (range 8) 13996 | -1/Access | Identified exit to Command 13996 | -1/Access | Entered Command 14053 | -1/Command | Found Gamma Bomb Array 14059 | -1/Command | Found Gamma Bomb Array 14078 | -1/Command | Phase Generator disabled 14154 | -1/Command | Disengaged cave seal 14328 | -1/Command | Spotted Striker 14343 | -1/Command | Destroyed Striker 14516 | -1/Command | Spotted Striker 14522 | -1/Command | Destroyed Striker 14523 | -1/Command | Destroyed Striker 14591 | -1/Command | Spotted M Guard 14592 | -1/Command | Spotted M Guard 14592 | -1/Command | Spotted Combat Programmer 14604 | -1/Command | System corruption reached 10% 14606 | -1/Command | Spotted Combat Programmer 14629 | -1/Command | Destroyed Combat Programmer 14630 | -1/Command | System corruption reached 30% 14643 | -1/Command | Destroyed Combat Programmer 14711 | -1/Command | Destroyed M Guard 14722 | -1/Command | Destroyed M Guard 14722 | -1/Command | All MAIN.C guards destroyed 14728 | -1/Command | Found Corrupted Prototype Protection 14728 | -1/Command | Identified Hvy. Regenerative Plating 14731 | -1/Command | Found Corrupted Prototype Reactor 14731 | -1/Command | Identified Zero-point Reactor 14734 | -1/Command | Found Corrupted Prototype Device 14734 | -1/Command | Identified AEGIS Remote Shield 14743 | -1/Command | Lost 10 parts (1p2n5u2w) 14746 | -1/Command | First assault squad dispatched 14763 | -1/Command | Found Corrupted Hvy. Regenerative Plating 14847 | -1/Command | Destroyed 8 combat bots 14953 | -1/Command | Met MAIN.C 14957 | -1/Command | 0b10 Conduit disabled 15016 | -1/Command | Destroyed MAIN.C Shell 15019 | -1/Command | MAIN.C activated Command garrisons 15019 | -1/Command | Surrendered to MAIN.C 15019 | -1/Command | Loaded intel: 54 machine locations 15019 | -1/Command | Loaded intel: 96 trap records 15019 | -1/Command | Identified exit to Surface 15019 | -1/Command | Discovered exit to Surface (range 55) 15019 | -1/Command | Discovered exit to Surface (range 83) 15032 | -1/Command | Build established: Scavenger-Tank 15150 | -1/Command | Found Prototype Device 15150 | -1/Command | Identified Exp. EM Shield 15153 | -1/Command | Found Prototype Device 15153 | -1/Command | Identified Exp. Hardlight Generator 15156 | -1/Command | Found Prototype Device 15156 | -1/Command | Identified Exp. System Purifier 15160 | -1/Command | Found Prototype Device 15160 | -1/Command | Identified Exp. Force Field 15166 | -1/Command | Found Prototype Reactor 15166 | -1/Command | Identified Vortex Chain Reactor 15192 | -1/Command | Found Prototype Ballistic Gun 15192 | -1/Command | Identified Multirail 15464 | -1/Command | MAIN.C activated Command garrisons 15504 | -1/Command | Unknown forces attacked Command 15504 | -1/Command | Spotted EQ-004 15504 | -1/Command | Spotted EQ-003 15504 | -1/Command | Spotted EQ-000 15504 | -1/Command | Spotted EQ-006 15504 | -1/Command | Spotted EQ-001 15504 | -1/Command | Spotted EQ-002 15509 | -1/Command | Spotted EQ-005 15518 | -1/Command | Core integrity fell below 50% 15543 | -1/Command | Destroyed EQ-003 15545 | -1/Command | Destroyed EQ-005 15548 | -1/Command | Destroyed EQ-001 15570 | -1/Command | Lost 3 parts (3u) 15584 | -1/Command | Spotted EQ-020 15584 | -1/Command | Spotted EQ-018 15584 | -1/Command | Spotted EQ-019 15584 | -1/Command | Spotted EQ-022 15637 | -1/Command | Spotted EQ-013 15643 | -1/Command | Destroyed EQ-018 15663 | -1/Command | Spotted EQ-024 15666 | -1/Command | Spotted EQ-021 15671 | -1/Command | Spotted EQ-030 15684 | -1/Command | Spotted EQ-034 15691 | -1/Command | Spotted EQ-039 15691 | -1/Command | Spotted EQ-040 15691 | -1/Command | Spotted EQ-058 15698 | -1/Command | Spotted EQ-035 15700 | -1/Command | Spotted EQ-038 15701 | -1/Command | Spotted EQ-059 15701 | -1/Command | Spotted EQ-041 15706 | -1/Command | Spotted EQ-049 15712 | -1/Command | Core integrity fell below 20% 15716 | -1/Command | Spotted EQ-007 15724 | -1/Command | Lost 4 allies 15735 | -1/Command | Spotted B-99 Colossus 15735 | -1/Command | Spotted Executioner 15735 | -1/Command | Destroyed by EQ-040 with Railgun Last Messages --------------- 15714_ Penetrated by Slug. 15714_ Slug penetrates 0b10 Conduit. 15718_ Acquired Adv. Phase Shifter. 15718_ Penetrated by Slug. 15718_ Hvy. Hardcell Cannon destroyed. 15718_ Knocked back. 15725_ System corrupted: Energy discharge (-83). 15725_ Penetrated by Slug. 15725_ Adv. Weapon Cycler destroyed. 15728_ Acquired Exp. Biometal Leg. 15730_ Discarded Exp. System Purifier. 15731_ Dropped Cep. Chromion Battery. 15732_ Extracted 153 energy. 15732_ Dropped Graphene Brace. 15732_ Acquired 5 matter. 15733_ Acquired Exp. Biometal Leg. 15733_ Penetrated by Slug. 15734_ Slug penetrates B-99 Colossus. 15735_ EQ-058 knocked back. 15735_ Penetrated by Slug. Map ----- +----------------------------------------------------+ | ?????????????????????????????????????????#?#?#???? | | #########????????????????????????????????#?#?#???? | | #????????????????????????????????#?#?#???? | | #????????????????????????????????#?#?#???? | | """" #????????????????????????????????#?#?#???? | | """" #????????????????????????????????#?#?#???? | | """" #????????????????????????????????#?#?#???? | | """" #????????????????????????????????#?#?#???? | | #????????????????????????????????#?#?#???? | | #????????????????????????????????#?#?#???? | | #####+###????????????????????????????????#?#?#???? | | ??# #????????????????????????????????#?#?#???? | | ??# #????????????????????????????????#?#?#???? | | ??# #????????????????????????????????#?#?#???? | | ??# #????????????????????????????????#?#?#???? | | ??# ! #????????????????????????????????#?#?#???? | | #### ##????????????????????????????????#?#?#???? | | # #????????????????????????????????#?#?#???? | | # #?###########################????#?#?#???? | | # #?#?????????????????????????#????#?#?#???? | | # #?#?#######################?#????#?#?#???? | | # #?#?#""""""" " " % ################ | | # #?#?#"" " #?#????????????? | | # #?#?#""""" % ################ | | # #?#?#""" " % % | | +### #?#?# % !@ = !E | | #?#?# " " !% % BB | | #?#?# % %!!! BB %################ | | #?#?# % #?#????????????? | | #?#?#% % ################ | | #?#?# %%% % % #?#????#?#?#???? | | % #?#?# " % %#?#????#?#?#???? | | #?#?# % #?#????#?#?#???? | | !#?#?# * #?#????#?#?#???? | | %!"?#?#[n [Q[ % #?#????#?#?#???? | | =!!"####%%%[!% #?#????#?#?#???? | | *]![%!|=% Q " " "" #?#????#?#?#???? | | ]%%!% %[[ % %""" " " " #?#????#?#?#???? | | !!%![!!% % % " " #?#????#?#?#???? | | %% %*"#### """""" " " #?#????#?#?#???? | | %#?#?# " """ " """" " "#?#????#?#?#???? | | % #?#?# """ " " " #?#????#?#?#???? | | % #?#?#######################?#????#?#?#???? | | % #?#?????????????????????????#????#?#?#???? | | #?###########################????#?#?#???? | | #????????????????????????????????#?#?#???? | | #????????????????????????????????#?#?#???? | | *= #????????????????????????????????#?#?#???? | | = #????????????????????????????????#?#?#???? | | = #????????????????????????????????#?#?#???? | +----------------------------------------------------+ Best States ------------- Heat Dissipation 90 Coolant Potential 120 Energy Generation 65 Energy Capacity 2100 Matter Stores 300 Matter Capacity 300 Sight Range 16 Robot Scan Range 19 Terrain Scan Range 20 Terrain Scan Density 210 ECM Strength 2 Jamming Range 16 Cloak Strength 4 Corruption Containment 12 Corruption Block 12 Armor Coverage 2400 Resistance: EM 75 Weapon Cycling 25 Phase Shifting 15 Evasion (%) 78 Launcher Accuracy 60 Recoil Reduction 7 Offensive Hacking 36 Defensive Hacking 37 Item Schematics ----------------- Adv. System Shield | -5/Factory | Scanalyzed Cld. Cesium-ion Thruster | -5/Hub_04(d) | Hacked Adv. Hacking Suite | -5/Hub_04(d) | Hacked Cld. Field Propulsion Drive | -4/Factory | Hacked Nanoactuators | -4/Factory | Hacked Adv. Transmission Jammer | -4/Factory | Hacked Adv. ECM Suite | -4/Factory | Hacked Lgt. Neutrino Core | -4/Factory | Hacked Imp. Fusion Compressor | -4/Factory | Hacked Vibroblade | -4/Factory | Scanalyzed CPS Tube | -4/Factory | Scanalyzed Assault Drone Bay | -4/Zhirov | Free Exp. Heat Sink | -4/Zhirov | Free Exp. Optical Array | -4/Zhirov | Free Imp. Arc Thrower | -4/Zhirov | Free Imp. Cloaking Device | -3/Research | Hacked Adv. Remote Datajack | -3/Research | Hacked Adv. EM Disruption Field | -2/Protoforge | Archive Cld. Antigrav System | -2/Protoforge | Archive Com. Particle Reactor | -2/Protoforge | Archive Robot Schematics ------------------ L-61 Swordsman | -4/Factory | Hacked Fabricated ------------ Lgt. Neutrino Core | x1 | -4/Factory Cld. Field Propulsion Drive | x1 | -4/Factory Adv. ECM Suite | x2 | -3/Armory Adv. Hacking Suite | x1 | -3/Armory Adv. Hacking Suite | x1 | -2/Protoforge Repaired ---------- Nothing Alien Tech Used ----------------- Integrated Reactor Transdimensional Reconstructor Integrated Mediator Phase Redirector Core Expander Subatomic Replicator Dimensional Node Initializer Supercharged TR Achievements -------------- 404 Challenges ------------ None Game ------ Seed ActiveDirtyGravjet Manual? 0 Play Time 05:57:15 Cumulative 238.8 hours Start 2025.05.22 @ 01:13:28 End 2025.05.22 @ 14:03:08 Sessions 3 Manual Loads 0 Difficulty Rogue Special Mode None Game No. 127 Rogue 119 Adventurer 8 Explorer 0 Win Type - Total 8 Types 4/0/2/1/0/0/0/0/0/1 Lore% 83 Gallery% 79 Achievement% 66 Wizard Run 0 Options --------- Layout 2 ASCII 0 Keyboard 1 Movement Numpad Keybinds 1 Fullscreen 1 Font 48/Smallcaps Map View 50x44 Zoom Use 0% Tactical HUD 1 Map Filters NONE Filters NONE Steam 1 RUN: 6c7bce7f-5c2b-49e5-9cee-85c4bb5ae749